[Event "Titled Tuesday Blitz March 01 Early 2022"]
[White "Godzwon, Iwo"]
[Black "Jones, Gawain C B"]
[WhiteFideId "21802483"]
[BlackFideId "409561"]
[WhiteElo "2201"]
[BlackElo "2657"]
[Result "0-1"]
[Round "03"]
[TimeControl "180+1"]
[Date "2022.03.01"]
[WhiteClock "0:00:03"]
[BlackClock "0:00:12"]

1. e4 {[%clk 0:03:00]}  e5 {[%clk 0:02:59]} 2. Nf3 {[%clk 0:03:01]}  Nc6 {[%clk 0:03:00]} 3. Bb5 {[%clk 0:03:00]}  a6 {[%clk 0:02:59]} 4. Ba4 {[%clk 0:03:01]}  d6 {[%clk 0:02:59]} 5. O-O {[%clk 0:02:46]}  Bd7 {[%clk 0:02:58]} 6. d4 {[%clk 0:02:42]}  b5 {[%clk 0:02:56]} 7. Bb3 {[%clk 0:02:42]}  Nxd4 {[%clk 0:02:56]} 8. Nxd4 {[%clk 0:02:42]}  exd4 {[%clk 0:02:57]} 9. Qh5 {[%clk 0:02:41]}  Qf6 {[%clk 0:02:40]} 10. c3 {[%clk 0:02:40]}  g6 {[%clk 0:02:30]} 11. Qd5 {[%clk 0:02:24]}  c6 {[%clk 0:02:30]} 12. Qxd4 {[%clk 0:02:24]}  Bg7 {[%clk 0:02:28]} 13. Be3 {[%clk 0:02:22]}  Qxd4 {[%clk 0:02:19]} 14. Bxd4 {[%clk 0:02:14]}  Bxd4 {[%clk 0:02:10]} 15. cxd4 {[%clk 0:02:15]}  Nf6 {[%clk 0:02:11]} 16. Nd2 {[%clk 0:02:15]}  Be6 {[%clk 0:01:56]} 17. Rac1 {[%clk 0:02:03]}  Bxb3 {[%clk 0:01:49]} 18. Nxb3 {[%clk 0:01:58]}  Kd7 {[%clk 0:01:47]} 19. e5 {[%clk 0:01:58]}  Nd5 {[%clk 0:01:45]} 20. Na5 {[%clk 0:01:24]}  Rhc8 {[%clk 0:01:40]} 21. Nb7 {[%clk 0:01:24]}  dxe5 {[%clk 0:01:40]} 22. dxe5 {[%clk 0:01:22]}  Re8 {[%clk 0:01:28]} 23. Rfe1 {[%clk 0:01:09]}  a5 {[%clk 0:01:27]} 24. Nd6 {[%clk 0:01:08]}  Re7 {[%clk 0:01:26]} 25. Nxf7 {[%clk 0:01:08]}  Kc7 {[%clk 0:01:12]} 26. Nd6 {[%clk 0:00:44]}  Nb4 {[%clk 0:01:09]} 27. Re3 {[%clk 0:00:17]}  Nxa2 {[%clk 0:01:01]} 28. Nxb5+ {[%clk 0:00:15]}  Kb6 {[%clk 0:00:57]} 29. Ra1 {[%clk 0:00:13]}  cxb5 {[%clk 0:00:53]} 30. Rxa2 {[%clk 0:00:13]}  Rc8 {[%clk 0:00:50]} 31. f4 {[%clk 0:00:12]}  Rc2 {[%clk 0:00:46]} 32. h3 {[%clk 0:00:08]}  h5 {[%clk 0:00:40]} 33. Rg3 {[%clk 0:00:06]}  Re6 {[%clk 0:00:37]} 34. Rc3 {[%clk 0:00:07]}  Rd2 {[%clk 0:00:32]} 35. Kh2 {[%clk 0:00:06]}  h4 {[%clk 0:00:31]} 36. Re3 {[%clk 0:00:06]}  a4 {[%clk 0:00:28]} 37. Re4 {[%clk 0:00:06]}  Kc6 {[%clk 0:00:20]} 38. Rb4 {[%clk 0:00:04]}  Kc5 {[%clk 0:00:16]} 39. Re4 {[%clk 0:00:05]}  Kd5 {[%clk 0:00:15]} 40. Rb4 {[%clk 0:00:05]}  Rb6 {[%clk 0:00:15]} 41. Ra3 {[%clk 0:00:03]}  Ke6 {[%clk 0:00:12]} 0-1


[Site "https://www.chess.com"]

[Event "Titled Tuesday Blitz March 01 Early 2022"]
[White "Goltseva, Ekaterina"]
[Black "Manelyuk, Daniil"]
[WhiteFideId "24173770"]
[BlackFideId "44173920"]
[WhiteElo "2140"]
[BlackElo "2222"]
[Result "1-0"]
[Round "03"]
[TimeControl "180+1"]
[Date "2022.03.01"]
[WhiteClock "0:01:36"]
[BlackClock "0:00:07"]

1. d4 {[%clk 0:03:00]}  Nf6 {[%clk 0:02:59]} 2. c4 {[%clk 0:03:01]}  c5 {[%clk 0:02:57]} 3. d5 {[%clk 0:03:01]}  b5 {[%clk 0:02:58]} 4. cxb5 {[%clk 0:03:00]}  a6 {[%clk 0:02:58]} 5. bxa6 {[%clk 0:03:01]}  g6 {[%clk 0:02:58]} 6. Nc3 {[%clk 0:03:01]}  Bg7 {[%clk 0:02:59]} 7. e4 {[%clk 0:03:02]}  O-O {[%clk 0:02:59]} 8. Be2 {[%clk 0:03:02]}  Qa5 {[%clk 0:02:58]} 9. Bd2 {[%clk 0:03:03]}  Bxa6 {[%clk 0:02:49]} 10. e5 {[%clk 0:03:02]}  Ne8 {[%clk 0:02:44]} 11. Nf3 {[%clk 0:03:02]}  d6 {[%clk 0:02:41]} 12. e6 {[%clk 0:03:01]}  fxe6 {[%clk 0:02:33]} 13. Ng5 {[%clk 0:03:01]}  e5 {[%clk 0:01:48]} 14. h4 {[%clk 0:02:43]}  Nf6 {[%clk 0:01:20]} 15. h5 {[%clk 0:02:11]}  Bxe2 {[%clk 0:01:11]} 16. Qxe2 {[%clk 0:02:10]}  Nxh5 {[%clk 0:00:59]} 17. Rxh5 {[%clk 0:01:59]}  gxh5 {[%clk 0:01:00]} 18. Qe4 {[%clk 0:01:50]}  Rf6 {[%clk 0:00:29]} 19. Qxh7+ {[%clk 0:01:48]}  Kf8 {[%clk 0:00:28]} 20. Nce4 {[%clk 0:01:42]}  Rh6 {[%clk 0:00:14]} 21. Qf5+ {[%clk 0:01:39]}  Rf6 {[%clk 0:00:09]} 22. Qc8+ {[%clk 0:01:36]}  Qd8 {[%clk 0:00:07]} 23. Qxd8# {[%clk 0:01:36]} 1-0


[Site "https://www.chess.com"]

[Event "Titled Tuesday Blitz March 01 Early 2022"]
[White "Golubenko, Valentina"]
[Black "Kaplan, Ebru"]
[WhiteFideId "4501993"]
[BlackFideId "6315194"]
[WhiteElo "2164"]
[BlackElo "1941"]
[Result "0-1"]
[Round "03"]
[TimeControl "180+1"]
[Date "2022.03.01"]
[WhiteClock "0:00:27"]
[BlackClock "0:00:17"]

1. d4 {[%clk 0:03:00]}  d5 {[%clk 0:02:59]} 2. g3 {[%clk 0:03:01]}  Nf6 {[%clk 0:02:59]} 3. Bg2 {[%clk 0:03:01]}  c6 {[%clk 0:02:56]} 4. Nf3 {[%clk 0:03:01]}  Bg4 {[%clk 0:02:55]} 5. Ne5 {[%clk 0:03:00]}  Bf5 {[%clk 0:02:56]} 6. O-O {[%clk 0:03:00]}  e6 {[%clk 0:02:56]} 7. c4 {[%clk 0:03:01]}  Be7 {[%clk 0:02:53]} 8. Nc3 {[%clk 0:03:01]}  O-O {[%clk 0:02:53]} 9. b3 {[%clk 0:03:01]}  Nbd7 {[%clk 0:02:53]} 10. Nxd7 {[%clk 0:02:55]}  Qxd7 {[%clk 0:02:51]} 11. Re1 {[%clk 0:02:56]}  Rad8 {[%clk 0:02:49]} 12. cxd5 {[%clk 0:02:52]}  exd5 {[%clk 0:02:48]} 13. Bf4 {[%clk 0:02:46]}  Bb4 {[%clk 0:02:37]} 14. Bd2 {[%clk 0:02:43]}  Rfe8 {[%clk 0:02:36]} 15. a3 {[%clk 0:02:41]}  Bd6 {[%clk 0:02:35]} 16. b4 {[%clk 0:02:41]}  Ne4 {[%clk 0:02:20]} 17. Nxe4 {[%clk 0:02:38]}  Bxe4 {[%clk 0:02:20]} 18. Qb3 {[%clk 0:02:33]}  h5 {[%clk 0:02:12]} 19. h4 {[%clk 0:02:32]}  Bxg2 {[%clk 0:02:02]} 20. Kxg2 {[%clk 0:02:32]}  Qg4 {[%clk 0:02:03]} 21. Qf3 {[%clk 0:02:27]}  Re4 {[%clk 0:01:59]} 22. e3 {[%clk 0:02:12]}  Qxf3+ {[%clk 0:01:42]} 23. Kxf3 {[%clk 0:02:12]}  f5 {[%clk 0:01:40]} 24. Kg2 {[%clk 0:02:07]}  Kf7 {[%clk 0:01:38]} 25. f3 {[%clk 0:02:04]}  Re7 {[%clk 0:01:37]} 26. Rf1 {[%clk 0:02:02]}  Rde8 {[%clk 0:01:36]} 27. a4 {[%clk 0:01:50]}  Re6 {[%clk 0:01:35]} 28. b5 {[%clk 0:01:48]}  Rg6 {[%clk 0:01:30]} 29. f4 {[%clk 0:01:47]}  Rge6 {[%clk 0:01:21]} 30. Rfb1 {[%clk 0:01:37]}  c5 {[%clk 0:01:21]} 31. Re1 {[%clk 0:01:21]}  cxd4 {[%clk 0:01:05]} 32. exd4 {[%clk 0:01:21]}  Re2+ {[%clk 0:01:05]} 33. Kf3 {[%clk 0:01:16]}  Rxd2 {[%clk 0:01:05]} 34. Rxe8 {[%clk 0:01:14]}  Kxe8 {[%clk 0:01:05]} 35. Re1+ {[%clk 0:01:14]}  Kd7 {[%clk 0:01:05]} 36. Ke3 {[%clk 0:01:08]}  Rg2 {[%clk 0:00:59]} 37. Kf3 {[%clk 0:01:06]}  Ra2 {[%clk 0:00:59]} 38. b6 {[%clk 0:01:06]}  a6 {[%clk 0:00:56]} 39. Ke3 {[%clk 0:00:54]}  Rxa4 {[%clk 0:00:56]} 40. Re2 {[%clk 0:00:54]}  Ra3+ {[%clk 0:00:52]} 41. Kf2 {[%clk 0:00:54]}  Rb3 {[%clk 0:00:53]} 42. g4 {[%clk 0:00:54]}  fxg4 {[%clk 0:00:50]} 43. f5 {[%clk 0:00:54]}  Rf3+ {[%clk 0:00:48]} 44. Kg2 {[%clk 0:00:54]}  Rxf5 {[%clk 0:00:48]} 45. Rc2 {[%clk 0:00:51]}  Rf4 {[%clk 0:00:45]} 46. Rd2 {[%clk 0:00:50]}  g3 {[%clk 0:00:45]} 47. Rd3 {[%clk 0:00:47]}  Rf2+ {[%clk 0:00:44]} 48. Kg1 {[%clk 0:00:46]}  Rb2 {[%clk 0:00:42]} 49. Rf3 {[%clk 0:00:44]}  Ke7 {[%clk 0:00:37]} 50. Rf5 {[%clk 0:00:42]}  g2 {[%clk 0:00:33]} 51. Rg5 {[%clk 0:00:35]}  Bf4 {[%clk 0:00:31]} 52. Rxg7+ {[%clk 0:00:34]}  Kf6 {[%clk 0:00:30]} 53. Rxg2 {[%clk 0:00:28]}  Be3+ {[%clk 0:00:28]} 54. Kf1 {[%clk 0:00:28]}  Rxg2 {[%clk 0:00:28]} 55. Kxg2 {[%clk 0:00:28]}  Bxd4 {[%clk 0:00:29]} 56. Kf3 {[%clk 0:00:28]}  Bxb6 {[%clk 0:00:29]} 57. Kf4 {[%clk 0:00:28]}  a5 {[%clk 0:00:29]} 58. Kf3 {[%clk 0:00:27]}  a4 {[%clk 0:00:29]} 59. Ke2 {[%clk 0:00:28]}  a3 {[%clk 0:00:30]} 60. Kd2 {[%clk 0:00:28]}  a2 {[%clk 0:00:30]} 61. Kc2 {[%clk 0:00:28]}  a1=Q {[%clk 0:00:30]} 62. Kd3 {[%clk 0:00:29]}  Qa3+ {[%clk 0:00:28]} 63. Ke2 {[%clk 0:00:28]}  d4 {[%clk 0:00:28]} 64. Kd2 {[%clk 0:00:28]}  d3 {[%clk 0:00:26]} 65. Ke1 {[%clk 0:00:28]}  Qc3+ {[%clk 0:00:25]} 66. Kd1 {[%clk 0:00:27]}  Qc2+ {[%clk 0:00:25]} 67. Ke1 {[%clk 0:00:27]}  Qe2# {[%clk 0:00:17]} 0-1


[Site "https://www.chess.com"]

[Event "Titled Tuesday Blitz March 01 Early 2022"]
[White "Golubev, Mikhail"]
[Black "Neiksans, Arturs"]
[WhiteFideId "14100983"]
[BlackFideId "11601388"]
[WhiteElo "2374"]
[BlackElo "2447"]
[Result "0-1"]
[Round "03"]
[TimeControl "180+1"]
[Date "2022.03.01"]
[WhiteClock "0:00:19"]
[BlackClock "0:00:58"]

1. e4 {[%clk 0:03:00]}  c5 {[%clk 0:02:59]} 2. Nf3 {[%clk 0:03:00]}  e6 {[%clk 0:02:59]} 3. d4 {[%clk 0:03:00]}  cxd4 {[%clk 0:03:00]} 4. Nxd4 {[%clk 0:03:00]}  a6 {[%clk 0:02:59]} 5. Bd3 {[%clk 0:02:59]}  Bc5 {[%clk 0:02:59]} 6. Be3 {[%clk 0:02:57]}  Qc7 {[%clk 0:02:48]} 7. Qg4 {[%clk 0:02:48]}  g6 {[%clk 0:02:33]} 8. O-O {[%clk 0:02:45]}  d6 {[%clk 0:02:25]} 9. Qh4 {[%clk 0:02:34]}  Qe7 {[%clk 0:02:20]} 10. Bg5 {[%clk 0:02:33]}  f6 {[%clk 0:02:19]} 11. Be3 {[%clk 0:02:32]}  e5 {[%clk 0:02:11]} 12. Ne2 {[%clk 0:02:26]}  Bxe3 {[%clk 0:02:08]} 13. fxe3 {[%clk 0:02:27]}  Be6 {[%clk 0:02:08]} 14. Nbc3 {[%clk 0:02:25]}  Nd7 {[%clk 0:02:02]} 15. Nd5 {[%clk 0:02:25]}  Bxd5 {[%clk 0:02:03]} 16. exd5 {[%clk 0:02:26]}  f5 {[%clk 0:02:03]} 17. Qxe7+ {[%clk 0:02:19]}  Kxe7 {[%clk 0:02:02]} 18. e4 {[%clk 0:02:19]}  fxe4 {[%clk 0:01:59]} 19. Bxe4 {[%clk 0:02:18]}  Ngf6 {[%clk 0:01:58]} 20. Ng3 {[%clk 0:02:11]}  Rac8 {[%clk 0:01:57]} 21. c3 {[%clk 0:02:09]}  Rc5 {[%clk 0:01:50]} 22. Rad1 {[%clk 0:02:07]}  Nb6 {[%clk 0:01:50]} 23. Rf3 {[%clk 0:01:48]}  Rf8 {[%clk 0:01:49]} 24. Rfd3 {[%clk 0:01:45]}  Na4 {[%clk 0:01:40]} 25. R1d2 {[%clk 0:01:41]}  b5 {[%clk 0:01:36]} 26. Bf3 {[%clk 0:01:39]}  Rc7 {[%clk 0:01:30]} 27. h4 {[%clk 0:01:35]}  Nb6 {[%clk 0:01:23]} 28. h5 {[%clk 0:01:30]}  Rc4 {[%clk 0:01:21]} 29. Re3 {[%clk 0:01:22]}  Rh4 {[%clk 0:01:16]} 30. Ree2 {[%clk 0:01:17]}  Nbd7 {[%clk 0:01:06]} 31. Rd1 {[%clk 0:01:15]}  Kd8 {[%clk 0:01:05]} 32. b3 {[%clk 0:01:08]}  Kc7 {[%clk 0:01:03]} 33. hxg6 {[%clk 0:01:01]}  hxg6 {[%clk 0:01:02]} 34. Kf2 {[%clk 0:00:50]}  e4 {[%clk 0:01:02]} 35. Rd4 {[%clk 0:00:21]}  exf3 {[%clk 0:00:58]} 36. Rxh4 {[%clk 0:00:19]}  fxe2 {[%clk 0:00:58]} 0-1


[Site "https://www.chess.com"]

[Event "Titled Tuesday Blitz March 01 Early 2022"]
[White "Gutenev, Alexander"]
[Black "Nilsen, Tobias Lang"]
[WhiteFideId "4195540"]
[BlackFideId "1521624"]
[WhiteElo "2403"]
[BlackElo "2013"]
[Result "1-0"]
[Round "03"]
[TimeControl "180+1"]
[Date "2022.03.01"]
[WhiteClock "0:00:27"]
[BlackClock "0:00:05"]

1. b3 {[%clk 0:02:55]}  Nf6 {[%clk 0:02:58]} 2. Bb2 {[%clk 0:02:56]}  g6 {[%clk 0:02:57]} 3. g4 {[%clk 0:02:56]}  Bg7 {[%clk 0:02:56]} 4. g5 {[%clk 0:02:56]}  Nh5 {[%clk 0:02:56]} 5. Bxg7 {[%clk 0:02:57]}  Nxg7 {[%clk 0:02:57]} 6. d4 {[%clk 0:02:57]}  d5 {[%clk 0:02:57]} 7. Qd2 {[%clk 0:02:57]}  Nc6 {[%clk 0:02:54]} 8. Nc3 {[%clk 0:02:56]}  Bf5 {[%clk 0:02:53]} 9. Bg2 {[%clk 0:02:54]}  Be6 {[%clk 0:02:41]} 10. e4 {[%clk 0:02:50]}  Bc8 {[%clk 0:02:23]} 11. exd5 {[%clk 0:02:46]}  Nb8 {[%clk 0:02:23]} 12. O-O-O {[%clk 0:02:44]}  Bf5 {[%clk 0:02:20]} 13. Re1 {[%clk 0:02:40]}  O-O {[%clk 0:02:20]} 14. Nge2 {[%clk 0:02:26]}  a5 {[%clk 0:02:16]} 15. a4 {[%clk 0:02:23]}  c6 {[%clk 0:02:14]} 16. Ng3 {[%clk 0:02:20]}  cxd5 {[%clk 0:02:13]} 17. Nxd5 {[%clk 0:02:19]}  Nc6 {[%clk 0:02:10]} 18. Kb2 {[%clk 0:02:16]}  Be6 {[%clk 0:02:06]} 19. Nf4 {[%clk 0:02:14]}  Qxd4+ {[%clk 0:01:56]} 20. Qxd4 {[%clk 0:02:14]}  Nxd4 {[%clk 0:01:57]} 21. Bxb7 {[%clk 0:02:11]}  Rab8 {[%clk 0:01:56]} 22. Ba6 {[%clk 0:02:02]}  Rb6 {[%clk 0:01:30]} 23. Bd3 {[%clk 0:01:56]}  Rc8 {[%clk 0:01:26]} 24. Nxe6 {[%clk 0:01:53]}  Ngxe6 {[%clk 0:01:26]} 25. Re5 {[%clk 0:01:50]}  Nc5 {[%clk 0:01:19]} 26. Bc4 {[%clk 0:01:34]}  Nxa4+ {[%clk 0:01:16]} 27. Kc1 {[%clk 0:01:34]}  Nc5 {[%clk 0:00:57]} 28. Rxe7 {[%clk 0:01:32]}  Ndxb3+ {[%clk 0:00:54]} 29. Kd1 {[%clk 0:01:27]}  Nd4 {[%clk 0:00:46]} 30. Rxf7 {[%clk 0:01:24]}  Nce6 {[%clk 0:00:28]} 31. Bxe6 {[%clk 0:01:14]}  Nxe6 {[%clk 0:00:26]} 32. Ra7 {[%clk 0:01:12]}  Rb5 {[%clk 0:00:16]} 33. h4 {[%clk 0:01:10]}  Nf4 {[%clk 0:00:16]} 34. Re1 {[%clk 0:01:05]}  Rd5+ {[%clk 0:00:09]} 35. Kc1 {[%clk 0:01:02]}  Nd3+ {[%clk 0:00:09]} 36. Kd2 {[%clk 0:01:00]}  Nxe1+ {[%clk 0:00:10]} 37. Kxe1 {[%clk 0:01:00]}  Rxc2 {[%clk 0:00:09]} 38. Ne4 {[%clk 0:00:56]}  Re5 {[%clk 0:00:08]} 39. f3 {[%clk 0:00:56]}  Rc8 {[%clk 0:00:04]} 40. Kf2 {[%clk 0:00:54]}  Rc2+ {[%clk 0:00:03]} 41. Kg3 {[%clk 0:00:53]}  Rf5 {[%clk 0:00:03]} 42. Nf6+ {[%clk 0:00:51]}  Rxf6 {[%clk 0:00:04]} 43. gxf6 {[%clk 0:00:51]}  Rc5 {[%clk 0:00:04]} 44. Rg7+ {[%clk 0:00:48]}  Kh8 {[%clk 0:00:04]} 45. Rb7 {[%clk 0:00:43]}  Kg8 {[%clk 0:00:04]} 46. Kg4 {[%clk 0:00:42]}  Rf5 {[%clk 0:00:04]} 47. Rg7+ {[%clk 0:00:39]}  Kh8 {[%clk 0:00:03]} 48. Ra7 {[%clk 0:00:37]}  Rxf6 {[%clk 0:00:03]} 49. Rxa5 {[%clk 0:00:36]}  Kg7 {[%clk 0:00:03]} 50. f4 {[%clk 0:00:35]}  Rf7 {[%clk 0:00:03]} 51. Kg5 {[%clk 0:00:34]}  Rc7 {[%clk 0:00:01]} 52. Rd5 {[%clk 0:00:32]}  h6+ {[%clk 0:00:02]} 53. Kg4 {[%clk 0:00:32]}  Rf7 {[%clk 0:00:03]} 54. h5 {[%clk 0:00:31]}  gxh5+ {[%clk 0:00:03]} 55. Rxh5 {[%clk 0:00:31]}  Kg6 {[%clk 0:00:04]} 56. Rc5 {[%clk 0:00:31]}  h5+ {[%clk 0:00:05]} 57. Kg3 {[%clk 0:00:31]}  Rf5 {[%clk 0:00:04]} 58. Rc6+ {[%clk 0:00:30]}  Rf6 {[%clk 0:00:05]} 59. Rc8 {[%clk 0:00:30]}  Kf5 {[%clk 0:00:04]} 60. Rc5+ {[%clk 0:00:28]}  Ke4 {[%clk 0:00:05]} 61. Re5+ {[%clk 0:00:28]}  Kd4 {[%clk 0:00:05]} 62. Rxh5 {[%clk 0:00:28]}  Rf8 {[%clk 0:00:03]} 63. Re5 {[%clk 0:00:27]}  Rg8+ {[%clk 0:00:03]} 64. Kf3 {[%clk 0:00:27]}  Rf8 {[%clk 0:00:04]} 65. Re1 {[%clk 0:00:27]}  Kd5 {[%clk 0:00:04]} 66. Kg4 {[%clk 0:00:27]}  Kd6 {[%clk 0:00:04]} 67. f5 {[%clk 0:00:27]}  Rg8+ {[%clk 0:00:04]} 68. Kh5 {[%clk 0:00:26]}  Rh8+ {[%clk 0:00:04]} 69. Kg6 {[%clk 0:00:26]}  Rg8+ {[%clk 0:00:04]} 70. Kf7 {[%clk 0:00:26]}  Ra8 {[%clk 0:00:03]} 71. f6 {[%clk 0:00:26]}  Ra7+ {[%clk 0:00:04]} 72. Kg8 {[%clk 0:00:26]}  Ra8+ {[%clk 0:00:04]} 73. Kg7 {[%clk 0:00:26]}  Ra7+ {[%clk 0:00:05]} 74. f7 {[%clk 0:00:27]} 1-0


[Site "https://www.chess.com"]

[Event "Titled Tuesday Blitz March 01 Early 2022"]
[White "Dronavalli, Harika"]
[Black "Tymrakiewicz, Rafal"]
[WhiteFideId "5015197"]
[BlackFideId "1108832"]
[WhiteElo "2382"]
[BlackElo "2205"]
[Result "1-0"]
[Round "03"]
[TimeControl "180+1"]
[Date "2022.03.01"]
[WhiteClock "0:01:03"]
[BlackClock "0:00:19"]

1. Nf3 {[%clk 0:02:59]}  Nf6 {[%clk 0:02:59]} 2. c4 {[%clk 0:02:58]}  g6 {[%clk 0:02:59]} 3. b3 {[%clk 0:02:56]}  Bg7 {[%clk 0:02:59]} 4. Bb2 {[%clk 0:02:57]}  O-O {[%clk 0:02:59]} 5. g3 {[%clk 0:02:57]}  d6 {[%clk 0:02:59]} 6. d4 {[%clk 0:02:57]}  c6 {[%clk 0:02:57]} 7. Bg2 {[%clk 0:02:57]}  Ne4 {[%clk 0:02:56]} 8. O-O {[%clk 0:02:56]}  Nd7 {[%clk 0:02:55]} 9. Nfd2 {[%clk 0:02:41]}  Nxd2 {[%clk 0:02:48]} 10. Qxd2 {[%clk 0:02:40]}  f5 {[%clk 0:02:23]} 11. Nc3 {[%clk 0:02:36]}  e6 {[%clk 0:01:43]} 12. Ba3 {[%clk 0:02:10]}  Nf6 {[%clk 0:01:42]} 13. Rad1 {[%clk 0:01:50]}  Rf7 {[%clk 0:01:27]} 14. e4 {[%clk 0:01:44]}  f4 {[%clk 0:01:16]} 15. Qxf4 {[%clk 0:01:42]}  Nd5 {[%clk 0:00:58]} 16. Qd2 {[%clk 0:01:30]}  Nxc3 {[%clk 0:00:56]} 17. Qxc3 {[%clk 0:01:30]}  Qc7 {[%clk 0:00:49]} 18. Qc1 {[%clk 0:01:12]}  Bd7 {[%clk 0:00:31]} 19. f4 {[%clk 0:01:12]}  Re8 {[%clk 0:00:26]} 20. e5 {[%clk 0:01:10]}  dxe5 {[%clk 0:00:24]} 21. dxe5 {[%clk 0:01:10]}  Bf8 {[%clk 0:00:20]} 22. Bd6 {[%clk 0:01:08]}  Qa5 {[%clk 0:00:19]} 23. Qd2 {[%clk 0:01:03]}  Bc8 {[%clk 0:00:19]} 24. Qxa5 {[%clk 0:01:03]} 1-0


[Site "https://www.chess.com"]

[Event "Titled Tuesday Blitz March 01 Early 2022"]
[White "Hirneise, Jens"]
[Black "Yuan, Qingyu"]
[WhiteFideId "24614734"]
[BlackFideId "8609772"]
[WhiteElo "2323"]
[BlackElo "2359"]
[Result "1/2-1/2"]
[Round "03"]
[TimeControl "180+1"]
[Date "2022.03.01"]
[WhiteClock "0:01:55"]
[BlackClock "0:01:25"]

1. d4 {[%clk 0:03:00]}  Nf6 {[%clk 0:03:00]} 2. c4 {[%clk 0:03:00]}  g6 {[%clk 0:02:57]} 3. g3 {[%clk 0:03:00]}  c6 {[%clk 0:02:57]} 4. Nf3 {[%clk 0:02:58]}  d5 {[%clk 0:02:58]} 5. cxd5 {[%clk 0:02:57]}  cxd5 {[%clk 0:02:58]} 6. Bg2 {[%clk 0:02:57]}  Bg7 {[%clk 0:02:58]} 7. O-O {[%clk 0:02:54]}  O-O {[%clk 0:02:59]} 8. Ne5 {[%clk 0:02:53]}  Nfd7 {[%clk 0:02:55]} 9. Nxd7 {[%clk 0:02:46]}  Nxd7 {[%clk 0:02:48]} 10. Nc3 {[%clk 0:02:42]}  Nf6 {[%clk 0:02:47]} 11. Bg5 {[%clk 0:02:39]}  Be6 {[%clk 0:02:36]} 12. Qb3 {[%clk 0:02:34]}  Qd7 {[%clk 0:02:33]} 13. Bxf6 {[%clk 0:02:30]}  Bxf6 {[%clk 0:02:33]} 14. Bxd5 {[%clk 0:02:30]}  Bxd4 {[%clk 0:02:23]} 15. Bxe6 {[%clk 0:02:20]}  Qxe6 {[%clk 0:02:23]} 16. e3 {[%clk 0:02:09]}  Qxb3 {[%clk 0:02:13]} 17. axb3 {[%clk 0:02:10]}  Bg7 {[%clk 0:02:02]} 18. Rfd1 {[%clk 0:02:09]}  Rfc8 {[%clk 0:01:52]} 19. Rd7 {[%clk 0:02:08]}  Bxc3 {[%clk 0:01:49]} 20. bxc3 {[%clk 0:02:07]}  Rxc3 {[%clk 0:01:49]} 21. Rxb7 {[%clk 0:02:07]}  e6 {[%clk 0:01:29]} 22. b4 {[%clk 0:02:03]}  Rb3 {[%clk 0:01:25]} 23. Raxa7 {[%clk 0:01:53]}  Rxa7 {[%clk 0:01:24]} 24. Rxa7 {[%clk 0:01:54]}  Rxb4 {[%clk 0:01:25]} 25. h4 {[%clk 0:01:55]}  h5 {[%clk 0:01:25]} 26. Kg2 {[%clk 0:01:55]} 1/2-1/2


[Site "https://www.chess.com"]

[Event "Titled Tuesday Blitz March 01 Early 2022"]
[White "Izoria, Zviad"]
[Black "Nozdrachev, Leonid"]
[WhiteFideId "13601733"]
[BlackFideId "24113433"]
[WhiteElo "2626"]
[BlackElo "2124"]
[Result "1-0"]
[Round "03"]
[TimeControl "180+1"]
[Date "2022.03.01"]
[WhiteClock "0:00:35"]
[BlackClock "0:00:18"]

1. Nf3 {[%clk 0:03:00]}  Nf6 {[%clk 0:02:58]} 2. c4 {[%clk 0:03:00]}  g6 {[%clk 0:02:54]} 3. g3 {[%clk 0:03:00]}  Bg7 {[%clk 0:02:54]} 4. Bg2 {[%clk 0:03:01]}  O-O {[%clk 0:02:54]} 5. O-O {[%clk 0:03:01]}  d6 {[%clk 0:02:54]} 6. d4 {[%clk 0:03:01]}  Nc6 {[%clk 0:02:54]} 7. d5 {[%clk 0:03:00]}  Na5 {[%clk 0:02:53]} 8. Qa4 {[%clk 0:03:01]}  c6 {[%clk 0:02:47]} 9. Bd2 {[%clk 0:03:01]}  b6 {[%clk 0:02:36]} 10. Bxa5 {[%clk 0:02:59]}  bxa5 {[%clk 0:02:35]} 11. dxc6 {[%clk 0:02:59]}  Qb6 {[%clk 0:02:30]} 12. Nc3 {[%clk 0:02:46]}  Qxb2 {[%clk 0:02:23]} 13. Nd5 {[%clk 0:02:43]}  Nxd5 {[%clk 0:02:22]} 14. cxd5 {[%clk 0:02:44]}  Ba6 {[%clk 0:02:09]} 15. Rab1 {[%clk 0:02:32]}  Qxe2 {[%clk 0:02:08]} 16. Qxa5 {[%clk 0:02:18]}  Bc4 {[%clk 0:02:02]} 17. Rb7 {[%clk 0:01:36]}  Qxa2 {[%clk 0:01:48]} 18. Qxa2 {[%clk 0:01:33]}  Bxa2 {[%clk 0:01:49]} 19. Nd2 {[%clk 0:01:33]}  e6 {[%clk 0:01:37]} 20. Ne4 {[%clk 0:01:04]}  Bxd5 {[%clk 0:01:31]} 21. Nxd6 {[%clk 0:01:04]}  Be5 {[%clk 0:01:25]} 22. Bxd5 {[%clk 0:01:00]}  exd5 {[%clk 0:01:22]} 23. Nb5 {[%clk 0:00:58]}  Rfc8 {[%clk 0:01:20]} 24. f4 {[%clk 0:00:50]}  Bb2 {[%clk 0:00:46]} 25. c7 {[%clk 0:00:43]}  a5 {[%clk 0:00:39]} 26. Nd6 {[%clk 0:00:36]}  Rf8 {[%clk 0:00:25]} 27. Rxb2 {[%clk 0:00:34]}  a4 {[%clk 0:00:18]} 28. c8=Q {[%clk 0:00:34]}  Rfxc8 {[%clk 0:00:17]} 29. Nxc8 {[%clk 0:00:35]}  Rxc8 {[%clk 0:00:18]} 30. Ra2 {[%clk 0:00:35]} 1-0


[Site "https://www.chess.com"]